fUSD/lending_fUSD_20251026
["ID","MTS","AMOUNT","RATE_DAILY","PERIOD"]
[392458223,1761502290632,-500.0,0.00047397,120]
[392458224,1761502290641,-546.01,0.00047397,120]
[392458225,1761502290650,-872.67,0.00047397,120]
[392458226,1761502290659,-638.78,0.00047397,120]
[392458227,1761502290668,-621.96,0.00047397,120]
[392458228,1761502290678,-3243.76,0.00047397,120]
[392458229,1761502290688,-3325.32,0.00047397,120]
[392458230,1761502290698,-574.04,0.00047397,120]
[392458231,1761502290707,-500.0,0.00047397,120]
[392458232,1761502290716,-3293.52,0.00047397,120]
[392458233,1761502290726,-3275.26,0.00047397,120]
[392458234,1761502290735,-500.0,0.00047397,120]
[392458235,1761502290744,-3408.96,0.00047397,120]
[392458236,1761502290754,-500.0,0.00047397,120]
[392458237,1761502290763,-3360.34,0.00047397,120]
[392458238,1761502290772,-500.0,0.00047397,120]
[392458239,1761502290781,-500.0,0.00047397,120]
[392458240,1761502290791,-3270.66,0.00047397,120]
[392458241,1761502290800,-834.14,0.00047397,60]
[392458242,1761502290809,-3464.48,0.00047397,120]
[392458243,1761502290819,-500.0,0.00047397,120]
[392458244,1761502290829,-3280.36,0.00047397,120]
[392458245,1761502290839,-608.26,0.00047397,120]
[392458246,1761502290848,-500.0,0.00047397,120]
[392458247,1761502290858,-3389.04,0.00047397,120]
[392458248,1761502290867,-3318.89,0.00047397,120]
[392458249,1761502290876,-1312.59,0.00047397,30]
[392458250,1761502290885,-618.11,0.00047397,120]
[392458251,1761502290895,-208.64603111,0.00047397,120]
[392458252,1761502290904,-500.0,0.00047397,120]
[392458253,1761502290914,-2366.83,0.00047397,120]
[392458254,1761502290923,-2822.6,0.00047397,120]
[392458255,1761502290932,-704.08,0.00047397,120]
[392458256,1761502290942,-3260.07,0.00047397,120]
[392458257,1761502290951,-1524.98,0.00047397,120]
[392458258,1761502290960,-7969.3,0.00047397,14]
[392458259,1761502290970,-915.47,0.00047397,120]
[392458260,1761502290979,-3261.63,0.00047397,120]
[392458261,1761502290989,-1896.02,0.00047397,120]
[392458262,1761502290998,-2684.62,0.00047397,120]
[392458263,1761502291007,-500.0,0.00047397,120]
[392458264,1761502291017,-750.74,0.00047397,120]
[392458265,1761502291027,-3318.43,0.00047397,120]
[392458266,1761502291036,-2291.46,0.00047397,2]
[392458267,1761502291045,-1515.21,0.00047397,120]
[392458268,1761502291054,-2469.89,0.00047397,120]
[392458269,1761502291063,-3266.86,0.00047397,120]
[392458270,1761502291072,-558.1,0.00047397,120]
[392458271,1761502291081,-579.16,0.00047397,120]
[392458272,1761502291091,-500.0,0.00047397,120]
[392458273,1761502291100,-560.89,0.00047397,120]
[392458274,1761502291109,-500.0,0.00047397,2]
[392458275,1761502291118,-500.0,0.00047397,120]
[392458276,1761502291127,-3770.12,0.00047415,30]
[392458277,1761502291136,-3770.12,0.00047415,30]
[392458278,1761502291145,-425018.3837,0.00047444,30]
[392458279,1761502291155,-794.38,0.00047446,120]
[392458280,1761502291164,-5288.92481405,0.000476,2]
[392458281,1761502291173,-1000.0,0.00047671,2]
[392458282,1761502291182,-500.0,0.00047671,120]
[392458283,1761502291191,-583.15,0.00047671,120]
[392458284,1761502291200,-536.02,0.00047671,120]
[392458285,1761502291209,-588.41,0.00047671,120]
[392458286,1761502291218,-574.84,0.00047671,120]
[392458287,1761502291227,-500.0,0.00047671,120]
[392458288,1761502291235,-500.0,0.00047671,120]
[392458289,1761502291244,-546.01,0.00047671,120]
[392458290,1761502291253,-872.67,0.00047671,120]
[392458291,1761502291262,-638.78,0.00047671,120]
[392458292,1761502291271,-621.96,0.00047671,120]
[392458293,1761502291280,-3243.76,0.00047671,120]
[392458294,1761502291290,-3325.32,0.00047671,120]
[392458295,1761502291299,-574.04,0.00047671,120]
[392458296,1761502291307,-500.0,0.00047671,120]
[392458297,1761502291316,-3293.52,0.00047671,120]
[392458298,1761502291326,-3275.26,0.00047671,120]
[392458299,1761502291335,-500.0,0.00047671,120]
[392458300,1761502291345,-3408.96,0.00047671,120]
[392458301,1761502291354,-500.0,0.00047671,120]
[392458302,1761502291363,-3360.34,0.00047671,120]
[392458303,1761502291372,-500.0,0.00047671,120]
[392458304,1761502291381,-500.0,0.00047671,120]
[392458305,1761502291391,-3270.66,0.00047671,120]
[392458306,1761502291498,-834.14,0.00047671,60]
[392458307,1761502291509,-3464.48,0.00047671,120]
[392458308,1761502291518,-500.0,0.00047671,120]
[392458309,1761502291527,-3280.36,0.00047671,120]
[392458310,1761502291536,-608.26,0.00047671,120]
[392458311,1761502291547,-500.0,0.00047671,120]
[392458312,1761502291556,-3389.04,0.00047671,120]
[392458313,1761502291565,-3318.89,0.00047671,120]
[392458314,1761502291574,-1312.59,0.00047671,30]
[392458315,1761502291583,-618.11,0.00047671,120]
[392458316,1761502291593,-500.0,0.00047671,120]
[392458317,1761502291602,-2366.83,0.00047671,120]
[392458318,1761502291612,-2822.6,0.00047671,120]
[392458319,1761502291621,-704.08,0.00047671,120]
[392458320,1761502291630,-3260.07,0.00047671,120]
[392458321,1761502291639,-1524.98,0.00047671,120]
[392458322,1761502291648,-7969.3,0.00047671,14]
[392458323,1761502291657,-915.47,0.00047671,120]
[392458324,1761502291667,-3261.63,0.00047671,120]
[392458325,1761502291676,-1896.02,0.00047671,120]
[392458326,1761502291686,-2684.62,0.00047671,120]
[392458327,1761502291695,-500.0,0.00047671,120]
[392458328,1761502291704,-750.74,0.00047671,120]
[392458329,1761502291713,-3318.43,0.00047671,120]
[392458330,1761502291723,-2291.46,0.00047671,2]
[392458331,1761502291732,-1515.21,0.00047671,120]
[392458332,1761502291742,-2469.89,0.00047671,120]
[392458333,1761502291751,-3266.86,0.00047671,120]
[392458334,1761502291761,-558.1,0.00047671,120]
[392458335,1761502291770,-579.16,0.00047671,120]
[392458336,1761502291780,-500.0,0.00047671,120]
[392458337,1761502291789,-560.89,0.00047671,120]
[392458338,1761502291798,-500.0,0.00047671,2]
[392458339,1761502291807,-1000.0,0.00047899,120]
[392458340,1761502291817,-500.0,0.00047909,120]
[392458341,1761502291826,-1000.0,0.00047945,2]
[392458342,1761502291835,-500.0,0.00047945,120]
[392458343,1761502291845,-583.15,0.00047945,120]
[392458344,1761502291854,-536.02,0.00047945,120]
[392458345,1761502291863,-588.41,0.00047945,120]
[392458346,1761502291872,-574.84,0.00047945,120]
[392458347,1761502291882,-500.0,0.00047945,120]
[392458348,1761502291891,-500.0,0.00047945,120]
[392458349,1761502291900,-546.01,0.00047945,120]
[392458350,1761502291909,-872.67,0.00047945,120]
[392458351,1761502291919,-638.78,0.00047945,120]
[392458352,1761502291928,-621.96,0.00047945,120]
[392458353,1761502291937,-3243.76,0.00047945,120]
[392458354,1761502291947,-3325.32,0.00047945,120]
[392458355,1761502291957,-574.04,0.00047945,120]
[392458356,1761502291966,-500.0,0.00047945,120]
[392458357,1761502291975,-3293.52,0.00047945,120]
[392458358,1761502291984,-3275.26,0.00047945,120]
[392458359,1761502291994,-500.0,0.00047945,120]
[392458360,1761502292003,-3408.96,0.00047945,120]
[392458361,1761502292012,-323.76128182,0.00047945,120]
[392458362,1761502292022,-3360.34,0.00047945,120]
[392458363,1761502292031,-500.0,0.00047945,120]
[392458364,1761502292040,-184.23361268,0.00047945,120]
[392458365,1761502292051,-3270.66,0.00047945,120]
[392458366,1761502292061,-834.14,0.00047945,60]
[392458367,1761502292072,-3464.48,0.00047945,120]
[392458368,1761502292081,-509.27,0.00047945,120]
[392458369,1761502292090,-3280.36,0.00047945,120]
[392458370,1761502292099,-608.26,0.00047945,120]
[392458371,1761502292109,-500.0,0.00047945,120]
[392458372,1761502292119,-3389.04,0.00047945,120]
[392458373,1761502292128,-3318.89,0.00047945,120]
[392458374,1761502292138,-1312.59,0.00047945,30]
[392458375,1761502292148,-618.11,0.00047945,120]
[392458376,1761502292157,-336.82,0.00047945,120]
[392458377,1761502292167,-2366.83,0.00047945,120]
[392458378,1761502292177,-2822.6,0.00047945,120]
[392458379,1761502292189,-704.08,0.00047945,120]
[392458380,1761502292200,-3260.07,0.00047945,120]
[392458381,1761502292209,-1524.98,0.00047945,120]
[392458382,1761502292219,-7969.3,0.00047945,14]
[392458383,1761502292229,-915.47,0.00047945,120]
[392458384,1761502292238,-3261.63,0.00047945,120]
[392458385,1761502292248,-1896.02,0.00047945,120]
[392458386,1761502292257,-2684.62,0.00047945,120]
[392458387,1761502292267,-500.0,0.00047945,120]
[392458388,1761502292276,-750.74,0.00047945,120]
[392458389,1761502292285,-3318.43,0.00047945,120]
[392458390,1761502292295,-2291.46,0.00047945,2]
[392458391,1761502292304,-1515.21,0.00047945,120]
[392458392,1761502292313,-2469.89,0.00047945,120]
[392458393,1761502292322,-3266.86,0.00047945,120]
[392458394,1761502292332,-558.1,0.00047945,120]
[392458395,1761502292341,-579.16,0.00047945,120]
[392458396,1761502292351,-500.0,0.00047945,120]
[392458397,1761502292360,-560.89,0.00047945,120]
[392458398,1761502292370,-500.0,0.00047945,2]
[392458399,1761502292379,-898.86943779,0.00047964,30]
[392458400,1761502292388,-896.80592511,0.00047964,30]
[392458401,1761502292397,-1000000.0,0.00048,120]
[392458402,1761502292406,-30087.3107051,0.00048,120]
[392458403,1761502292415,-2826.59,0.00048,30]
[392458404,1761502292424,-284.35022368,0.00048,120]
[392458405,1761502292434,-355.18805721,0.00048,120]
[392458406,1761502292445,-724.20424895,0.00048,120]
[392458407,1761502292455,-539.11758872,0.00048,120]
[392458408,1761502292469,-1506.0,0.00048,120]
[392458409,1761502292479,-1595.0,0.00048,120]
[392458410,1761502292488,-211.57,0.00048,120]
[392458411,1761502292497,-1653.33,0.00048,90]
[392458412,1761502292507,-1142.99691735,0.00048219,2]
[392458413,1761502292517,-500.0,0.00048219,120]
[392458414,1761502292526,-583.15,0.00048219,120]
[392458415,1761502292537,-536.02,0.00048219,120]
[392458416,1761502292546,-588.41,0.00048219,120]
[392458417,1761502292556,-574.84,0.00048219,120]
[392458418,1761502292566,-401.81589813,0.00048219,120]
[392458419,1761502292577,-500.0,0.00048219,120]
[392458420,1761502292586,-546.01,0.00048219,120]
[392458421,1761502292596,-872.67,0.00048219,120]
[392458422,1761502292605,-638.78,0.00048219,120]
[392458423,1761502292615,-621.96,0.00048219,120]
[392458424,1761502292624,-3243.76,0.00048219,120]
[392458425,1761502292634,-3325.32,0.00048219,120]
[392458426,1761502292643,-574.04,0.00048219,120]
[392458427,1761502292651,-500.0,0.00048219,120]
[392458428,1761502292660,-3293.52,0.00048219,120]
[392458429,1761502292669,-3275.26,0.00048219,120]
[392458430,1761502292678,-500.0,0.00048219,120]
[392458431,1761502292687,-3408.96,0.00048219,120]
[392458432,1761502292695,-3360.34,0.00048219,120]
[392458433,1761502292705,-466.88,0.00048219,120]
[392458434,1761502292714,-3270.66,0.00048219,120]
[392458435,1761502292723,-834.14,0.00048219,60]
[392458436,1761502292733,-3464.48,0.00048219,120]
[392458437,1761502292742,-3280.36,0.00048219,120]
[392458438,1761502292751,-608.26,0.00048219,120]
[392458439,1761502292773,-500.0,0.00048219,120]
[392458440,1761502292782,-3389.04,0.00048219,120]
[392458441,1761502292792,-3318.89,0.00048219,120]
[392458442,1761502292801,-1312.59,0.00048219,30]
[392458443,1761502292818,-618.11,0.00048219,120]
[392458444,1761502292829,-2366.83,0.00048219,120]
[392458445,1761502292839,-2822.6,0.00048219,120]
[392458446,1761502292848,-704.08,0.00048219,120]
[392458447,1761502292858,-3260.07,0.00048219,120]
[392458448,1761502292868,-1524.98,0.00048219,120]
[392458449,1761502292877,-7969.3,0.00048219,14]
[392458450,1761502292887,-915.47,0.00048219,120]
[392458451,1761502292896,-3261.63,0.00048219,120]
[392458452,1761502292906,-1896.02,0.00048219,120]
[392458453,1761502292915,-2684.62,0.00048219,120]
[392458454,1761502292924,-500.0,0.00048219,120]
[392458455,1761502292934,-750.74,0.00048219,120]
[392458456,1761502292943,-3318.43,0.00048219,120]
[392458457,1761502292952,-2291.46,0.00048219,2]
[392458458,1761502292961,-1515.21,0.00048219,120]
[392458459,1761502292970,-2469.89,0.00048219,120]
[392458460,1761502292979,-3266.86,0.00048219,120]
[392458461,1761502292990,-558.1,0.00048219,120]
[392458462,1761502293002,-579.16,0.00048219,120]
[392458463,1761502293011,-500.0,0.00048219,120]
[392458464,1761502293020,-560.89,0.00048219,120]
[392458465,1761502293030,-500.0,0.00048219,2]
[392458466,1761502293039,-4563.39,0.00048308,2]
[392458467,1761502293047,-156.0142023,0.0004835,2]
[392458468,1761502293056,-500.0,0.00048493,120]
[392458469,1761502293067,-583.15,0.00048493,120]
[392458470,1761502293076,-536.02,0.00048493,120]
[392458471,1761502293085,-588.41,0.00048493,120]
[392458472,1761502293094,-574.84,0.00048493,120]
[392458473,1761502293103,-500.0,0.00048493,120]
[392458474,1761502293112,-546.01,0.00048493,120]
[392458475,1761502293122,-872.67,0.00048493,120]
[392458476,1761502293224,-638.78,0.00048493,120]
[392458477,1761502293234,-621.96,0.00048493,120]
[392458478,1761502293243,-3243.76,0.00048493,120]
[392458479,1761502293252,-3325.32,0.00048493,120]
[392458480,1761502293261,-574.04,0.00048493,120]
[392458481,1761502293269,-500.0,0.00048493,120]
[392458482,1761502293278,-3293.52,0.00048493,120]
[392458483,1761502293288,-3275.26,0.00048493,120]
[392458484,1761502293298,-500.0,0.00048493,120]
[392458485,1761502293307,-3408.96,0.00048493,120]
[392458486,1761502293316,-3360.34,0.00048493,120]
[392458487,1761502293325,-3270.66,0.00048493,120]
[392458488,1761502293334,-834.14,0.00048493,60]
[392458489,1761502293343,-3464.48,0.00048493,120]
[392458490,1761502293352,-3280.36,0.00048493,120]
[392458491,1761502293361,-608.26,0.00048493,120]
[392458492,1761502293371,-500.0,0.00048493,120]
[392458493,1761502293380,-3389.04,0.00048493,120]
[392458494,1761502293389,-3318.89,0.00048493,120]
[392458495,1761502293399,-1312.59,0.00048493,30]
[392458496,1761502293408,-618.11,0.00048493,120]
[392458497,1761502293417,-2366.83,0.00048493,120]
[392458498,1761502293427,-2822.6,0.00048493,120]
[392458499,1761502293436,-704.08,0.00048493,120]
[392458500,1761502293446,-3260.07,0.00048493,120]
[392458501,1761502293456,-1524.98,0.00048493,120]
[392458502,1761502293468,-7969.3,0.00048493,14]
[392458503,1761502293479,-915.47,0.00048493,120]
[392458504,1761502293489,-3261.63,0.00048493,120]
[392458505,1761502293499,-1896.02,0.00048493,120]
[392458506,1761502293508,-2684.62,0.00048493,120]
[392458507,1761502293518,-500.0,0.00048493,120]
[392458508,1761502293528,-750.74,0.00048493,120]
[392458509,1761502293538,-3318.43,0.00048493,120]
[392458510,1761502293550,-2291.46,0.00048493,2]
[392458511,1761502293559,-1515.21,0.00048493,120]
[392458512,1761502293569,-2469.89,0.00048493,120]
[392458513,1761502293578,-3266.86,0.00048493,120]
[392458514,1761502293588,-558.1,0.00048493,120]
[392458515,1761502293598,-579.16,0.00048493,120]
[392458516,1761502293608,-282.14807113,0.00048493,120]
[392458517,1761502293617,-560.89,0.00048493,120]
[392458518,1761502293629,-500.0,0.00048493,2]
[392458519,1761502293639,-313.09,0.00048517,120]
[392458520,1761502293649,-3481.0,0.00048627,2]
[392458521,1761502293659,-1971.011,0.00048627,2]
[392458522,1761502293668,-154.0,0.000487,120]
[392458523,1761502293677,-1000.0,0.0004876,65]
[392458524,1761502293687,-500.0,0.00048767,120]
[392458525,1761502293696,-583.15,0.00048767,120]
[392458526,1761502293705,-536.02,0.00048767,120]
[392458527,1761502293714,-588.41,0.00048767,120]
[392458528,1761502293723,-574.84,0.00048767,120]
[392458529,1761502293732,-500.0,0.00048767,120]
[392458530,1761502293741,-546.01,0.00048767,120]
[392458531,1761502293751,-872.67,0.00048767,120]
[392458532,1761502293761,-638.78,0.00048767,120]
[392458533,1761502293770,-621.96,0.00048767,120]
[392458534,1761502293779,-3243.76,0.00048767,120]
[392458535,1761502293789,-3325.32,0.00048767,120]
[392458536,1761502293798,-574.04,0.00048767,120]
[392458537,1761502293807,-648.00850088,0.00048767,120]
[392458538,1761502293817,-3293.52,0.00048767,120]
[392458539,1761502293826,-3275.26,0.00048767,120]
[392458540,1761502293836,-500.0,0.00048767,120]
[392458541,1761502293845,-3408.96,0.00048767,120]
[392458542,1761502293855,-3360.34,0.00048767,120]
[392458543,1761502293865,-3270.66,0.00048767,120]
[392458544,1761502293874,-834.14,0.00048767,60]
[392458545,1761502293884,-3464.48,0.00048767,120]
[392458546,1761502293893,-3280.36,0.00048767,120]
[392458547,1761502293902,-608.26,0.00048767,120]
[392458548,1761502293912,-500.0,0.00048767,120]
[392458549,1761502293922,-3389.04,0.00048767,120]
[392458550,1761502293931,-3318.89,0.00048767,120]
[392458551,1761502293940,-1312.59,0.00048767,30]
[392458552,1761502293950,-618.11,0.00048767,120]
[392458553,1761502293960,-2366.83,0.00048767,120]
[392458554,1761502293970,-2822.6,0.00048767,120]
[392458555,1761502293979,-704.08,0.00048767,120]
[392458556,1761502293989,-3260.07,0.00048767,120]
[392458557,1761502293998,-1524.98,0.00048767,120]
[392458558,1761502294008,-7969.3,0.00048767,14]
[392458559,1761502294018,-915.47,0.00048767,120]
[392458560,1761502294029,-3261.63,0.00048767,120]
[392458561,1761502294038,-1896.02,0.00048767,120]
[392458562,1761502294048,-2684.62,0.00048767,120]
[392458563,1761502294059,-500.0,0.00048767,120]
[392458564,1761502294069,-750.74,0.00048767,120]
[392458565,1761502294078,-3318.43,0.00048767,120]
[392458566,1761502294087,-2291.46,0.00048767,2]
[392458567,1761502294098,-1515.21,0.00048767,120]
[392458568,1761502294107,-2469.89,0.00048767,120]
[392458569,1761502294116,-3266.86,0.00048767,120]
[392458570,1761502294126,-558.1,0.00048767,120]
[392458571,1761502294136,-579.16,0.00048767,120]
[392458572,1761502294145,-560.89,0.00048767,120]
[392458573,1761502294154,-500.0,0.00048767,2]
[392458574,1761502294163,-2000.0,0.0004886,68]
[392458575,1761502294173,-500.0,0.0004888,120]
[392458576,1761502294182,-170.62486292,0.000489,120]
[392458577,1761502294191,-444.0,0.00048986,120]
[392458578,1761502294200,-1000.0,0.00048999,120]
[392458579,1761502294209,-1000000.0,0.00049,120]
[392458580,1761502294218,-151.57748084,0.00049,120]
[392458581,1761502294228,-100373.71486775,0.00049,30]
[392458582,1761502294237,-3666.0,0.00049,120]
[392458583,1761502294246,-163.6092921,0.00049,120]
[392458584,1761502294256,-500.0,0.00049041,120]
[392458585,1761502294266,-583.15,0.00049041,120]
[392458586,1761502294275,-536.02,0.00049041,120]
[392458587,1761502294284,-588.41,0.00049041,120]
[392458588,1761502294293,-574.84,0.00049041,120]
[392458589,1761502294302,-240.86748367,0.00049041,120]
[392458590,1761502294311,-546.01,0.00049041,120]
[392458591,1761502294320,-872.67,0.00049041,120]
[392458592,1761502294330,-638.78,0.00049041,120]
[392458593,1761502294339,-621.96,0.00049041,120]
[392458594,1761502294348,-3243.76,0.00049041,120]
[392458595,1761502294358,-3325.32,0.00049041,120]
[392458596,1761502294366,-574.04,0.00049041,120]
[392458597,1761502294376,-3293.52,0.00049041,120]
[392458598,1761502294385,-3275.26,0.00049041,120]
[392458599,1761502294394,-497.70368095,0.00049041,120]
[392458600,1761502294402,-3408.96,0.00049041,120]
[392458601,1761502294412,-3360.34,0.00049041,120]
[392458602,1761502294421,-3270.66,0.00049041,120]
[392458603,1761502294430,-834.14,0.00049041,60]
[392458604,1761502294439,-3464.48,0.00049041,120]
[392458605,1761502294448,-3280.36,0.00049041,120]
[392458606,1761502294459,-608.26,0.00049041,120]
[392458607,1761502294470,-500.0,0.00049041,120]
[392458608,1761502294479,-3389.04,0.00049041,120]
[392458609,1761502294488,-3318.89,0.00049041,120]
[392458610,1761502294497,-1312.59,0.00049041,30]
[392458611,1761502294508,-618.11,0.00049041,120]
[392458612,1761502294518,-2366.83,0.00049041,120]
[392458613,1761502294527,-2822.6,0.00049041,120]
[392458614,1761502294536,-704.08,0.00049041,120]
[392458615,1761502294546,-3260.07,0.00049041,120]
[392458616,1761502294555,-1524.98,0.00049041,120]
[392458617,1761502294564,-7969.3,0.00049041,14]
[392458618,1761502294573,-915.47,0.00049041,120]
[392458619,1761502294583,-3261.63,0.00049041,120]
[392458620,1761502294592,-1896.02,0.00049041,120]
[392458621,1761502294602,-2684.62,0.00049041,120]
[392458622,1761502294611,-500.0,0.00049041,120]
[392458623,1761502294620,-750.74,0.00049041,120]
[392458624,1761502294628,-3318.43,0.00049041,120]
[392458625,1761502294638,-2291.46,0.00049041,2]
[392458626,1761502294647,-1515.21,0.00049041,120]
[392458627,1761502294656,-2469.89,0.00049041,120]
[392458628,1761502294665,-3266.86,0.00049041,120]
[392458629,1761502294675,-558.1,0.00049041,120]
[392458630,1761502294684,-579.16,0.00049041,120]
[392458631,1761502294693,-560.89,0.00049041,120]
[392458632,1761502294794,-500.0,0.00049041,2]
[392458633,1761502294804,-278.33,0.00049087,2]
[392458634,1761502294814,-160.0,0.000491,120]
[392458635,1761502294823,-300.0,0.00049315,30]
[392458636,1761502294832,-300.0,0.00049315,30]
[392458637,1761502294842,-300.0,0.00049315,30]
[392458638,1761502294852,-500.0,0.00049315,120]
[392458639,1761502294861,-583.15,0.00049315,120]
[392458640,1761502294871,-536.02,0.00049315,120]
[392458641,1761502294880,-588.41,0.00049315,120]
[392458642,1761502294890,-574.84,0.00049315,120]
[392458643,1761502294899,-546.01,0.00049315,120]
[392458644,1761502294908,-872.67,0.00049315,120]
[392458645,1761502294918,-638.78,0.00049315,120]
[392458646,1761502294927,-621.96,0.00049315,120]
[392458647,1761502294936,-3243.76,0.00049315,120]
[392458648,1761502294946,-3325.32,0.00049315,120]
[392458649,1761502294957,-574.04,0.00049315,120]
[392458650,1761502294968,-3293.52,0.00049315,120]
[392458651,1761502294979,-3275.26,0.00049315,120]
[392458652,1761502294989,-3408.96,0.00049315,120]
[392458653,1761502294999,-3360.34,0.00049315,120]
[392458654,1761502295009,-3270.66,0.00049315,120]
[392458655,1761502295020,-834.14,0.00049315,60]
[392458656,1761502295031,-3464.48,0.00049315,120]
[392458657,1761502295041,-3280.36,0.00049315,120]
[392458658,1761502295051,-608.26,0.00049315,120]
[392458659,1761502295063,-214.18211245,0.00049315,120]
[392458660,1761502295074,-3389.04,0.00049315,120]
[392458661,1761502295084,-3318.89,0.00049315,120]
[392458662,1761502295094,-1312.59,0.00049315,30]
[392458663,1761502295105,-618.11,0.00049315,120]
[392458664,1761502295115,-2366.83,0.00049315,120]
[392458665,1761502295124,-2822.6,0.00049315,120]
[392458666,1761502295134,-704.08,0.00049315,120]
[392458667,1761502295144,-3260.07,0.00049315,120]
[392458668,1761502295153,-1524.98,0.00049315,120]
[392458669,1761502295162,-500.0,0.00049315,120]
[392458670,1761502295172,-7969.3,0.00049315,14]
[392458671,1761502295182,-915.47,0.00049315,120]
[392458672,1761502295192,-3261.63,0.00049315,120]
[392458673,1761502295201,-1896.02,0.00049315,120]
[392458674,1761502295211,-2684.62,0.00049315,120]
[392458675,1761502295223,-500.0,0.00049315,120]
[392458676,1761502295234,-750.74,0.00049315,120]
[392458677,1761502295243,-3318.43,0.00049315,120]
[392458678,1761502295252,-2291.46,0.00049315,2]
[392458679,1761502295262,-1515.21,0.00049315,120]
[392458680,1761502295274,-2469.89,0.00049315,120]
[392458681,1761502295283,-3266.86,0.00049315,120]
[392458682,1761502295292,-558.1,0.00049315,120]
[392458683,1761502295302,-579.16,0.00049315,120]
[392458684,1761502295311,-560.89,0.00049315,120]
[392458685,1761502295321,-500.0,0.00049315,2]
[392458686,1761502295332,-151.0,0.00049315,120]
[392458687,1761502295342,-151.0,0.00049315,120]
[392458688,1761502295351,-151.0,0.00049315,120]
[392458689,1761502295361,-151.0,0.00049315,120]
[392458690,1761502295370,-151.0,0.00049315,120]
[392458691,1761502295379,-243.274469,0.00049315,120]
[392458692,1761502295389,-2000.0,0.00049432,68]
[392458693,1761502295398,-2000.0,0.0004944,63]
[392458694,1761502295407,-2000.0,0.0004944,59]
[392458695,1761502295416,-170007.3535,0.00049444,30]
[392458696,1761502295426,-302.23988907,0.000495,120]
[392458697,1761502295436,-210.87085557,0.000495,120]
[392458698,1761502295445,-500.0,0.00049589,120]
[392458699,1761502295458,-583.15,0.00049589,120]
[392458700,1761502295473,-536.02,0.00049589,120]
[392458701,1761502295483,-588.41,0.00049589,120]
[392458702,1761502295494,-574.84,0.00049589,120]
[392458703,1761502295504,-546.01,0.00049589,120]
[392458704,1761502295514,-872.67,0.00049589,120]
[392458705,1761502295532,-638.78,0.00049589,120]
[392458706,1761502295550,-621.96,0.00049589,120]
[392458707,1761502295569,-3243.76,0.00049589,120]
[392458708,1761502295587,-3325.32,0.00049589,120]
[392458709,1761502295602,-574.04,0.00049589,120]
[392458710,1761502295621,-3293.52,0.00049589,120]
[392458711,1761502295642,-3275.26,0.00049589,120]
[392458712,1761502295661,-3408.96,0.00049589,120]
[392458713,1761502295679,-3360.34,0.00049589,120]
[392458714,1761502295698,-3270.66,0.00049589,120]
[392458715,1761502295715,-834.14,0.00049589,60]
[392458716,1761502295730,-3464.48,0.00049589,120]
[392458717,1761502295747,-3280.36,0.00049589,120]
[392458718,1761502295762,-608.26,0.00049589,120]
[392458719,1761502295777,-3389.04,0.00049589,120]
[392458720,1761502295793,-3318.89,0.00049589,120]
[392458721,1761502295808,-1312.59,0.00049589,30]
[392458722,1761502295823,-618.11,0.00049589,120]